Workbook

Sheet Balance Sheet
B1: BALANCE SHEET TEMPLATE
B3: Company Name
B5: Assets | D5: 2017 | E5: 2016 | G5: Liabilities and Owner's Equity | I5: 2017 | J5: 2016
B6: Current Assets | G6: Current Liabilities
C7: Cash | D7: $11,874 | E7: 0 | H7: Accounts Payable | I7: $8,060 | J7: 0
C8: Accounts Receivable | D8: 0 | E8: 0 | H8: Short-Term Loans | I8: 0 | J8: 0
C9: Inventory | D9: 0 | E9: 0 | H9: Income Taxes Payable | I9: $3,145 | J9: 0
C10: Prepaid Expenses | D10: 0 | E10: 0 | H10: Accrued Salaries and Wages | I10: 0 | J10: 0
C11: Short-Term Investments | D11: 0 | E11: 0 | H11: Unearned Revenue | I11: 0 | J11: 0
C12: Total Current Assets | D12: =SUM(D7:D11) -> $11,874 | E12: =SUM(E7:E11) -> 0 | H12: Current Portion of Long-Term Debt | I12: 0 | J12: 0
B13: Fixed (Long-Term) Assets | H13: Total Current Liabilities | I13: =SUM(I7:I12) -> $11,205 | J13: =SUM(J7:J12) -> 0
C14: Long-Term Investments | D14: $1,208 | E14: 0 | G14: Long-Term Liabilities
C15: Property, Plant, and Equipment | D15: $15,340 | E15: 0 | H15: Long-Term Debt | I15: $3,450 | J15: 0
C16: (Less Accumulated Depreciation) | D16: $(2,200) | E16: 0 | H16: Deferred Income Tax | I16: 0 | J16: 0
C17: Intangible Assets | D17: 0 | E17: 0 | H17: Other | I17: 0 | J17: 0
C18: Total Fixed Assets | D18: =SUM(D14:D17) -> $14,348 | E18: =SUM(E14:E17) -> 0 | H18: Total Long-Term Liabilities | I18: =SUM(I15:I17) -> $3,450 | J18: =SUM(J15:J17) -> 0
B19: Other Assets | G19: Owner's Equity
C20: Deferred Income Tax | D20: 0 | E20: 0 | H20: Owner's Investment | I20: $7,178 | J20: 0
C21: Other | D21: 0 | E21: 0 | H21: Retained Earnings | I21: $4,389 | J21: 0
C22: Total Other Assets | D22: =SUM(D20:D21) -> 0 | E22: =SUM(E20:E21) -> 0 | H22: Other | I22: 0 | J22: 0
H23: Total Owner's Equity | I23: =SUM(I20:I22) -> $11,567 | J23: =SUM(J20:J22) -> 0
B24: Total Assets | D24: =D12+D18+D22 -> $26,222 | E24: =E12+E18+E22 -> 0
G25: Total Liabilities and Owner's Equity | I25: =I13+I18+I23 -> $26,222 | J25: =J13+J18+J23 -> 0
E26: {42}
B27: Common Financial Ratios | D27: 2017 | E27: 2016
B28: Debt Ratio (Total Liabilities / Total Assets) | D28: =IF(D24=0,"",(I13+I18)/D24) -> 0.56 | E28: =IF(E24=0,"",(J13+J18)/E24) -> 
B29: Current Ratio (Current Assets / Current Liabilities) | D29: =IF(I13=0,"",D12/I13) -> 1.06 | E29: =IF(J13=0,"",E12/J13) -> 
B30: Working Capital (Current Assets / Current Liabilities) | D30: =D12-I13 -> 669 | E30: =E12-J13 -> 0
B31: Assets-to-Equity Ratio (Total Assets / Owner's Equity) | D31: =IF(I23=0,"",D24/I23) -> 2.27 | E31: =IF(J23=0,"",E24/J23) -> 
B32: Debt-to-Equity Ratio (Total Liabilities / Owner's Equity) | D32: =IF(I23=0,"",(I13+I18)/I23) -> 1.27 | E32: =IF(J23=0,"",(J13+J18)/J23) -> 
C34: CLICK HERE TO CREATE BALANCE SHEET TEMPLATES IN SMARTSHEET
